fUST/lending_fUST_20240815
["ID","MTS","AMOUNT","RATE_DAILY","PERIOD"]
[334991142,1723715440613,-500.0,0.00013698,2]
[334991143,1723715440622,-500.0,0.00013698,2]
[334991144,1723715440632,-500.0,0.00013698,2]
[334991145,1723715440642,-500.0,0.00013698,2]
[334991146,1723715440652,-500.0,0.00013698,2]
[334991147,1723715440666,-500.0,0.00013698,2]
[334991148,1723715440683,-525.19,0.00013698,2]
[334991149,1723715440693,-500.0,0.00013698,2]
[334991150,1723715440703,-500.0,0.00013698,2]
[334991151,1723715440713,-500.0,0.00013698,2]
[334991152,1723715440722,-500.0,0.00013698,2]
[334991153,1723715440732,-500.0,0.00013698,2]
[334991154,1723715440743,-500.0,0.00013698,2]
[334991155,1723715440752,-373.59197901,0.00013698,2]
[334991156,1723715440761,-538.07066586,0.00013698,2]
[334991157,1723715440771,-500.0,0.00013698,2]
[334991158,1723715440781,-562.5,0.00013698,2]
[334991159,1723715440791,-562.5,0.00013698,2]
[334991160,1723715440802,-562.5,0.00013698,2]
[334991161,1723715440812,-562.5,0.00013698,2]
[334991162,1723715440822,-562.5,0.00013698,2]
[334991163,1723715440831,-562.5,0.00013698,2]
[334991164,1723715440841,-562.5,0.00013698,2]
[334991165,1723715440850,-562.5,0.00013698,2]
[334991166,1723715440861,-562.5,0.00013698,2]
[334991167,1723715440870,-562.5,0.00013698,2]
[334991168,1723715440880,-562.5,0.00013698,2]
[334991169,1723715440889,-562.5,0.00013698,2]
[334991170,1723715440898,-562.5,0.00013698,2]
[334991171,1723715440909,-500.0,0.00013698,2]
[334991172,1723715440921,-562.5,0.00013698,2]
[334991173,1723715440930,-562.5,0.00013698,2]
[334991174,1723715440939,-562.5,0.00013698,2]
[334991175,1723715440948,-562.5,0.00013698,2]
[334991176,1723715440958,-562.5,0.00013698,2]
[334991177,1723715440967,-562.5,0.00013698,2]
[334991178,1723715440976,-562.5,0.00013698,2]
[334991179,1723715440986,-562.5,0.00013698,2]
[334991180,1723715440995,-562.5,0.00013698,2]
[334991181,1723715441006,-562.5,0.00013698,2]
[334991182,1723715441016,-562.5,0.00013698,2]
[334991183,1723715441025,-500.0,0.00013698,2]
[334991184,1723715441035,-500.0,0.00013698,2]
[334991185,1723715441044,-500.0,0.00013698,2]
[334991186,1723715441054,-500.0,0.00013698,2]
[334991187,1723715441064,-500.0,0.00013698,2]
[334991188,1723715441073,-503.51802139,0.00013698,2]
[334991189,1723715441083,-500.0,0.00013698,2]
[334991190,1723715441092,-361.1656613,0.00013698,2]
[334991191,1723715441102,-500.0,0.00013698,2]
[334991192,1723715441112,-500.0,0.00013698,2]
[334991193,1723715441121,-500.0,0.00013698,2]
[334991194,1723715441133,-555.73798203,0.00013698,2]
[334991195,1723715441145,-719.3,0.00013698,2]
[334991196,1723715441156,-500.0,0.00013698,2]
[334991197,1723715441165,-500.0,0.00013698,2]
[334991198,1723715441174,-500.0,0.00013698,2]
[334991199,1723715441184,-342.27455418,0.00013698,2]
[334991200,1723715441195,-500.0,0.00013698,2]
[334991201,1723715441204,-509.5476719,0.00013698,2]
[334991202,1723715441213,-500.0,0.00013698,2]
[334991203,1723715441224,-500.0,0.00013698,2]
[334991204,1723715441234,-500.0,0.00013698,2]
[334991205,1723715441244,-512.88543441,0.00013698,2]
[334991206,1723715441254,-500.0,0.00013698,2]
[334991207,1723715441264,-500.0,0.00013698,2]
[334991208,1723715441273,-500.0,0.00013698,2]
[334991209,1723715441283,-500.0,0.00013698,2]
[334991210,1723715441293,-500.3391649,0.00013698,2]
[334991211,1723715441302,-500.0,0.00013698,2]
[334991212,1723715441312,-500.0,0.00013698,2]
[334991213,1723715441322,-500.0,0.00013698,2]
[334991214,1723715441332,-500.0,0.00013698,2]
[334991215,1723715441342,-500.0,0.00013698,2]
[334991216,1723715441351,-884.09,0.00013698,2]
[334991217,1723715441360,-815.59,0.00013698,2]
[334991218,1723715441369,-500.0,0.00013698,2]
[334991219,1723715441379,-500.0,0.00013698,2]
[334991220,1723715441389,-584.3404547,0.00013698,2]
[334991221,1723715441398,-644.50451182,0.00013698,2]
[334991222,1723715441408,-500.0,0.00013698,2]
[334991223,1723715441417,-500.0,0.00013698,2]
[334991224,1723715441427,-500.0,0.00013698,2]
[334991225,1723715441436,-500.0,0.00013698,2]
[334991226,1723715441446,-506.25617049,0.00013698,2]
[334991227,1723715441456,-500.0,0.00013698,2]
[334991228,1723715441466,-500.0,0.00013698,2]
[334991229,1723715441476,-185.0,0.00013698,2]
[334991230,1723715441486,-500.0,0.00013698,2]
[334991231,1723715441496,-484.56118132,0.00013698,2]
[334991232,1723715441505,-500.0,0.00013698,2]
[334991233,1723715441515,-500.0,0.00013698,2]
[334991234,1723715441525,-500.0,0.00013698,2]
[334991235,1723715441534,-580.84,0.00013698,2]
[334991236,1723715441543,-500.0,0.00013698,2]
[334991237,1723715441552,-500.0,0.00013698,2]
[334991238,1723715441562,-500.0,0.00013698,2]
[334991239,1723715441571,-500.0,0.00013698,2]
[334991240,1723715441581,-500.0,0.00013698,2]
[334991241,1723715441590,-503.61535578,0.00013698,2]
[334991242,1723715441600,-500.0,0.00013698,2]
[334991243,1723715441608,-500.0,0.00013698,2]
[334991244,1723715441618,-500.0,0.00013698,2]
[334991245,1723715441628,-538.98,0.00013698,2]
[334991246,1723715441638,-448.39632702,0.00013698,2]
[334991247,1723715441653,-500.0,0.00013698,2]
[334991248,1723715441664,-551.91,0.00013698,2]
[334991249,1723715441676,-500.0,0.00013698,2]
[334991250,1723715441686,-650.94,0.00013698,2]
[334991251,1723715441696,-502.24325675,0.00013698,2]
[334991252,1723715441706,-500.0,0.00013698,2]
[334991253,1723715441716,-500.0,0.00013698,2]
[334991254,1723715441726,-500.0,0.00013698,2]
[334991255,1723715441736,-848.78,0.00013698,2]
[334991256,1723715441747,-516.30503848,0.00013698,2]
[334991257,1723715441757,-500.0,0.00013698,2]
[334991258,1723715441768,-500.0,0.00013698,2]
[334991259,1723715441778,-151.0,0.00013698,2]
[334991260,1723715441788,-500.0,0.00013698,2]
[334991261,1723715441798,-500.0,0.00013698,2]
[334991262,1723715441808,-500.0,0.00013698,2]
[334991263,1723715441818,-502.43448606,0.00013698,2]
[334991264,1723715441829,-500.0,0.00013698,2]
[334991265,1723715441840,-226.2222457,0.00013698,2]
[334991267,1723715443332,-274.52712205,0.00013698,2]
[334991268,1723715443343,-581.26349839,0.00013698,2]
[334991269,1723715443354,-501.89144435,0.00013698,2]
[334991270,1723715443365,-500.0,0.00013698,2]
[334991271,1723715443376,-500.0,0.00013698,2]
[334991272,1723715443387,-500.0,0.00013698,2]
[334991273,1723715443398,-622.69467479,0.00013698,2]
[334991275,1723715443409,-745.18,0.00013698,2]
[334991277,1723715443420,-48.01993935,0.00013698,2]
[334991281,1723715443477,-451.98006065,0.00013698,2]
[334991283,1723715443488,-500.0,0.00013698,2]
[334991285,1723715443499,-503.45819239,0.00013698,2]
[334991287,1723715443509,-500.0,0.00013698,2]
[334991289,1723715443519,-556.08411123,0.00013698,2]
[334991291,1723715443529,-500.0,0.00013698,2]
[334991293,1723715443539,-500.0,0.00013698,2]
[334991295,1723715443548,-500.0,0.00013698,2]
[334991297,1723715443558,-500.0,0.00013698,2]
[334991299,1723715443568,-500.0,0.00013698,2]
[334991302,1723715443587,-723.5,0.00013698,2]
[334991304,1723715443599,-693.26,0.00013698,2]
[334991307,1723715443609,-573.44,0.00013698,2]
[334991309,1723715443619,-988.89,0.00013698,2]
[334991311,1723715443629,-500.0,0.00013698,2]
[334991313,1723715443640,-222.63837823,0.00013698,2]
[334991315,1723715443650,-616.61,0.00013698,2]
[334991317,1723715443660,-531.85742716,0.00013698,2]
[334991319,1723715443670,-852.72,0.00013698,2]
[334991321,1723715443681,-734.48,0.00013698,2]
[334991322,1723715443691,-500.0,0.00013698,2]
[334991323,1723715443702,-500.0,0.00013698,2]
[334991324,1723715443712,-151.0,0.00013698,2]
[334991325,1723715443723,-151.0,0.00013698,2]
[334991326,1723715443732,-151.0,0.00013698,2]
[334991327,1723715443743,-151.0,0.00013698,2]
[334991328,1723715443752,-151.0,0.00013698,2]
[334991329,1723715443762,-151.0,0.00013698,2]
[334991330,1723715443772,-151.0,0.00013698,2]
[334991331,1723715443782,-151.0,0.00013698,2]
[334991332,1723715443791,-687.5,0.00013698,2]
[334991333,1723715443802,-151.0,0.00013698,2]
[334991334,1723715443812,-500.0,0.00013698,2]
[334991335,1723715443822,-151.0,0.00013698,2]
[334991336,1723715443832,-151.0,0.00013698,2]
[334991337,1723715443842,-473.59311813,0.00013698,2]
[334991338,1723715443852,-503.88412054,0.00013698,2]
[334991339,1723715443863,-502.37483598,0.00013698,2]
[334991340,1723715443873,-500.0,0.00013698,2]
[334991341,1723715443883,-500.0,0.00013698,2]
[334991342,1723715443893,-502.57236202,0.00013698,2]
[334991343,1723715443903,-712.92,0.00013698,2]
[334991344,1723715443913,-673.87,0.00013698,2]
[334991345,1723715443923,-500.0,0.00013698,2]
[334991346,1723715443933,-548.27933941,0.00013698,2]
[334991347,1723715443943,-500.0,0.00013698,2]
[334991348,1723715443955,-680.16,0.00013698,2]
[334991349,1723715443964,-721.95,0.00013698,2]
[334991350,1723715443974,-500.0,0.00013698,2]
[334991351,1723715443984,-500.0,0.00013698,2]
[334991352,1723715443993,-500.0,0.00013698,2]
[334991353,1723715444003,-151.0,0.00013698,2]
[334991354,1723715444013,-500.0,0.00013698,2]
[334991355,1723715444023,-151.0,0.00013698,2]
[334991360,1723715444205,-500.0,0.00013698,2]
[334991362,1723715444215,-500.0,0.00013698,2]
[334991364,1723715444227,-151.0,0.00013698,2]
[334991366,1723715444236,-151.0,0.00013698,2]
[334991368,1723715444246,-500.0,0.00013698,2]
[334991370,1723715444256,-509.97939403,0.00013698,2]
[334991372,1723715444265,-500.0,0.00013698,2]
[334991374,1723715444275,-500.0,0.00013698,2]
[334991376,1723715444285,-799.53,0.00013698,2]
[334991378,1723715444295,-512.27209168,0.00013698,2]
[334991380,1723715444305,-507.34,0.00013698,2]
[334991382,1723715444319,-151.0,0.00013698,2]
[334991384,1723715444334,-204.077518,0.00013698,2]
[334991386,1723715444343,-500.0,0.00013698,2]
[334991388,1723715444353,-506.27203636,0.00013698,2]
[334991390,1723715444363,-621.03,0.00013698,2]
[334991392,1723715444374,-777.98,0.00013698,2]
[334991394,1723715444388,-500.0,0.00013698,2]
[334991396,1723715444398,-500.0,0.00013698,2]
[334991397,1723715444408,-646.54647418,0.00013698,2]
[334991398,1723715444420,-573.42,0.00013698,2]
[334991399,1723715444431,-500.0,0.00013698,2]
[334991400,1723715444442,-500.0,0.00013698,2]
[334991401,1723715444454,-500.0,0.00013698,2]
[334991402,1723715444464,-500.0,0.00013698,2]
[334991403,1723715444473,-499.31497447,0.00013698,2]
[334991404,1723715444483,-1467.35,0.00013698,2]
[334991405,1723715444493,-706.06,0.00013698,2]
[334991406,1723715444502,-500.0,0.00013698,2]
[334991407,1723715444513,-419.08746111,0.00013698,2]
[334991408,1723715444523,-500.0,0.00013698,2]
[334991409,1723715444532,-500.0,0.00013698,2]
[334991410,1723715444543,-513.91930897,0.00013698,2]
[334991411,1723715444552,-500.0,0.00013698,2]
[334991412,1723715444564,-799.15,0.00013698,2]
[334991413,1723715444574,-505.36823899,0.00013698,2]
[334991414,1723715444583,-198.15117808,0.00013698,2]
[334991415,1723715444593,-509.53,0.00013698,2]
[334991416,1723715444603,-500.0,0.00013698,2]
[334991417,1723715444612,-500.0,0.00013698,2]
[334991418,1723715444622,-990.68,0.00013698,2]
[334991419,1723715444632,-1019.47,0.00013698,2]
[334991420,1723715444642,-500.0,0.00013698,2]
[334991421,1723715444652,-642.12,0.00013698,2]
[334991422,1723715444662,-500.0,0.00013698,2]
[334991423,1723715444672,-500.0,0.00013698,2]
[334991424,1723715444682,-500.0,0.00013698,2]
[334991425,1723715444692,-500.0,0.00013698,2]
[334991426,1723715444702,-526.9,0.00013698,2]
[334991427,1723715444712,-648.75,0.00013698,2]
[334991428,1723715444722,-500.0,0.00013698,2]
[334991429,1723715444731,-500.0,0.00013698,2]
[334991430,1723715444742,-500.0,0.00013698,2]
[334991431,1723715444751,-500.0,0.00013698,2]
[334991432,1723715444761,-589.87533855,0.00013698,2]
[334991433,1723715444771,-500.0,0.00013698,2]
[334991434,1723715444781,-500.0,0.00013698,2]
[334991435,1723715444791,-729.56,0.00013698,2]
[334991436,1723715444802,-714.51,0.00013698,2]
[334991437,1723715444812,-500.0,0.00013698,2]
[334991438,1723715444821,-500.0,0.00013698,2]
[334991439,1723715444831,-500.0,0.00013698,2]
[334991440,1723715444841,-712.05,0.00013698,2]
[334991441,1723715444850,-500.0,0.00013698,2]
[334991442,1723715444860,-500.0,0.00013698,2]
[334991443,1723715444870,-458.05399628,0.00013698,2]
[334991444,1723715444880,-710.46,0.00013698,2]
[334991445,1723715444890,-735.16,0.00013698,2]
[334991446,1723715444900,-500.0,0.00013698,2]
[334991447,1723715444910,-500.0,0.00013698,2]
[334991448,1723715444922,-500.0,0.00013698,2]
[334991449,1723715444932,-500.0,0.00013698,2]
[334991450,1723715444942,-606.1,0.00013698,2]
[334991451,1723715444951,-500.0,0.00013698,2]
[334991452,1723715444961,-503.72157249,0.00013698,2]
[334991453,1723715444971,-500.0,0.00013698,2]
[334991454,1723715444981,-500.0,0.00013698,2]
[334991455,1723715444990,-737.35,0.00013698,2]
[334991456,1723715445000,-503.97391153,0.00013698,2]
[334991457,1723715445010,-500.0,0.00013698,2]
[334991458,1723715445020,-218.200989,0.00013698,2]
[334991459,1723715445029,-503.17764221,0.00013698,2]
[334991460,1723715445039,-500.0,0.00013698,2]
[334991461,1723715445048,-594.15,0.00013698,2]
[334991462,1723715445058,-868.16,0.00013698,2]
[334991463,1723715445067,-508.88,0.00013698,2]
[334991464,1723715445077,-500.0,0.00013698,2]
[334991465,1723715445087,-500.0,0.00013698,2]
[334991466,1723715445096,-500.0,0.00013698,2]
[334991467,1723715445106,-508.06225119,0.00013698,2]
[334991468,1723715445116,-151.0,0.00013698,2]
[334991469,1723715445126,-151.0,0.00013698,2]
[334991470,1723715445136,-264.702478,0.00013698,2]
[334991471,1723715445149,-500.0,0.00013698,2]
[334991472,1723715445159,-151.0,0.00013698,2]
[334991473,1723715445168,-151.0,0.00013698,2]
[334991474,1723715445178,-151.0,0.00013698,2]
[334991475,1723715445188,-151.0,0.00013698,2]
[334991476,1723715445197,-151.0,0.00013698,2]
[334991477,1723715445207,-151.0,0.00013698,2]
[334991478,1723715445217,-151.0,0.00013698,2]
[334991479,1723715445229,-500.0,0.00013698,2]
[334991480,1723715445239,-500.0,0.00013698,2]
[334991481,1723715445249,-151.0,0.00013698,2]
[334991482,1723715445258,-713.28,0.00013698,2]
[334991483,1723715445268,-500.0,0.00013698,2]
[334991484,1723715445277,-643.64,0.00013698,2]
[334991485,1723715445287,-501.28945103,0.00013698,2]
[334991486,1723715445297,-500.0,0.00013698,2]
[334991487,1723715445307,-500.0,0.00013698,2]
[334991488,1723715445317,-502.51274674,0.00013698,2]
[334991489,1723715445327,-526.2940448,0.00013698,2]
[334991490,1723715445336,-500.0,0.00013698,2]
[334991491,1723715445346,-922.25,0.00013698,2]
[334991492,1723715445356,-500.0,0.00013698,2]
[334991493,1723715445365,-500.0,0.00013698,2]
[334991494,1723715445375,-502.75192161,0.00013698,2]
[334991495,1723715445385,-500.0,0.00013698,2]
[334991496,1723715445394,-500.0,0.00013698,2]
[334991497,1723715445404,-503.62067233,0.00013698,2]
[334991498,1723715445414,-912.3,0.00013698,2]
[334991499,1723715445423,-151.0,0.00013698,2]
[334991500,1723715445433,-598.14193,0.00013698,2]
[334991501,1723715445443,-151.0,0.00013698,2]
[334991502,1723715445452,-598.14193,0.00013698,2]
[334991503,1723715445462,-598.14193,0.00013698,2]
[334991504,1723715445472,-151.0,0.00013698,2]
[334991505,1723715445483,-598.14193,0.00013698,2]
[334991506,1723715445492,-151.0,0.00013698,2]
[334991507,1723715445502,-598.14193,0.00013698,2]
[334991508,1723715445512,-151.0,0.00013698,2]
[334991509,1723715445522,-598.14193,0.00013698,2]
[334991510,1723715445532,-151.0,0.00013698,2]
[334991511,1723715445541,-598.14193,0.00013698,2]
[334991512,1723715445551,-598.14193,0.00013698,2]
[334991513,1723715445561,-598.14193,0.00013698,2]
[334991514,1723715445571,-1150.15,0.00013698,2]
[334991515,1723715445581,-598.14193,0.00013698,2]
[334991516,1723715445590,-598.14193,0.00013698,2]
[334991518,1723715445600,-598.14193,0.00013698,2]
[334991519,1723715445609,-598.14193,0.00013698,2]
[334991520,1723715445620,-598.14193,0.00013698,2]
[334991521,1723715445630,-598.14193,0.00013698,2]
[334991522,1723715445639,-502.37776736,0.00013698,2]
[334991523,1723715445650,-502.29710798,0.00013698,2]
[334991524,1723715445660,-500.0,0.00013698,2]
[334991525,1723715445670,-598.14193,0.00013698,2]
[334991526,1723715445680,-598.14193,0.00013698,2]
[334991527,1723715445690,-151.0,0.00013698,2]
[334991528,1723715445699,-598.14193,0.00013698,2]
[334991529,1723715445709,-505.00469019,0.00013698,2]
[334991530,1723715445719,-151.0,0.00013698,2]
[334991531,1723715445729,-151.0,0.00013698,2]
[334991532,1723715445739,-151.0,0.00013698,2]
[334991533,1723715445749,-503.51316047,0.00013698,2]
[334991534,1723715445758,-500.0,0.00013698,2]
[334991535,1723715445768,-488.01606596,0.00013698,2]
[334991536,1723715445778,-506.0287462,0.00013698,2]
[334991537,1723715445788,-500.0,0.00013698,2]
[334991538,1723715445798,-500.0,0.00013698,2]
[334991539,1723715445808,-500.0,0.00013698,2]
[334991540,1723715445818,-500.0,0.00013698,2]
[334991541,1723715445827,-620.87,0.00013698,2]
[334991542,1723715445837,-500.0,0.00013698,2]
[334991543,1723715445846,-521.0,0.00013698,2]
[334991544,1723715445856,-500.0,0.00013698,2]
[334991545,1723715445867,-779.7,0.00013698,2]
[334991546,1723715445876,-668.01,0.00013698,2]
[334991547,1723715445886,-503.80708114,0.00013698,2]
[334991548,1723715445896,-500.0,0.00013698,2]
[334991549,1723715445906,-623.67,0.00013698,2]
[334991550,1723715445917,-500.0,0.00013698,2]
[334991551,1723715445927,-750.26,0.00013698,2]
[334991552,1723715445950,-504.3853113,0.00013698,2]
[334991553,1723715445961,-500.0,0.00013698,2]
[334991554,1723715445971,-500.0,0.00013698,2]
[334991555,1723715445981,-500.0,0.00013698,2]
[334991556,1723715445992,-446.91376089,0.00013698,2]
[334991557,1723715446002,-859.36,0.00013698,2]
[334991558,1723715446012,-500.0,0.00013698,2]
[334991560,1723715446022,-500.0,0.00013698,2]
[334991562,1723715446033,-504.23007357,0.00013698,2]
[334991564,1723715446043,-286.603439,0.00013698,2]
[334991566,1723715446053,-286.603439,0.00013698,2]
[334991568,1723715446063,-500.0,0.00013698,2]
[334991570,1723715446074,-286.603439,0.00013698,2]
[334991572,1723715446084,-623.7,0.00013698,2]
[334991574,1723715446095,-286.603439,0.00013698,2]
[334991576,1723715446106,-500.0,0.00013698,2]
[334991579,1723715446116,-286.603439,0.00013698,2]
[334991581,1723715446126,-286.603439,0.00013698,2]
[334991583,1723715446136,-286.603439,0.00013698,2]
[334991584,1723715446150,-503.73585767,0.00013698,2]
[334991585,1723715446161,-286.603439,0.00013698,2]
[334991586,1723715446171,-500.0,0.00013698,2]
[334991587,1723715446181,-507.3011054,0.00013698,2]
[334991588,1723715446191,-286.603439,0.00013698,2]
[334991589,1723715446201,-286.603439,0.00013698,2]
[334991590,1723715446211,-979.98,0.00013698,2]
[334991591,1723715446222,-584.61,0.00013698,2]
[334991592,1723715446232,-286.603439,0.00013698,2]
[334991593,1723715446242,-500.0,0.00013698,2]
[334991594,1723715446252,-286.603439,0.00013698,2]
[334991595,1723715446262,-286.603439,0.00013698,2]
[334991596,1723715446272,-286.603439,0.00013698,2]
[334991597,1723715446283,-500.0,0.00013698,2]
[334991598,1723715446293,-353.62993,0.00013698,2]
[334991599,1723715446303,-286.603439,0.00013698,2]
[334991600,1723715446313,-353.62993,0.00013698,2]
[334991601,1723715446322,-286.603439,0.00013698,2]
[334991602,1723715446333,-353.62993,0.00013698,2]
[334991603,1723715446343,-286.603439,0.00013698,2]
[334991604,1723715446353,-353.62993,0.00013698,2]
[334991605,1723715446364,-286.603439,0.00013698,2]
[334991606,1723715446374,-353.62993,0.00013698,2]
[334991607,1723715446385,-353.62993,0.00013698,2]
[334991608,1723715446395,-353.62993,0.00013698,2]
[334991609,1723715446405,-500.0,0.00013698,2]
[334991610,1723715446415,-353.62993,0.00013698,2]
[334991611,1723715446425,-1488.01,0.00013698,2]
[334991612,1723715446435,-353.62993,0.00013698,2]
[334991613,1723715446445,-500.0,0.00013698,2]
[334991614,1723715446455,-353.62993,0.00013698,2]
[334991615,1723715446466,-1293.53,0.00013698,2]
[334991616,1723715446475,-353.62993,0.00013698,2]
[334991617,1723715446485,-353.62993,0.00013698,2]
[334991618,1723715446495,-353.62993,0.00013698,2]
[334991619,1723715446506,-353.62993,0.00013698,2]
[334991620,1723715446516,-500.0,0.00013698,2]
[334991621,1723715446526,-353.62993,0.00013698,2]
[334991622,1723715446536,-500.0,0.00013698,2]
[334991623,1723715446546,-353.62993,0.00013698,2]
[334991624,1723715446556,-353.62993,0.00013698,2]
[334991625,1723715446566,-179.53129533,0.00013698,2]
[334991626,1723715446576,-353.62993,0.00013698,2]
[334991627,1723715446586,-500.0,0.00013698,2]
[334991628,1723715446596,-561.52,0.00013698,2]
[334991629,1723715446606,-639.19,0.00013698,2]
[334991630,1723715446616,-506.02929578,0.00013698,2]
[334991631,1723715446627,-171.42,0.00013698,2]
[334991632,1723715446638,-1726.96506449,0.00013698,2]
[334991633,1723715462024,200.19875101,0.0001,2]
[334991634,1723715503568,200.0,0.0001,2]
[334991635,1723715506503,200.0,0.0001,2]
[334991638,1723715712136,200.0,0.0001,2]
[334991863,1723716634389,288.10768054,0.0001,2]
[334991908,1723716638628,-300.0,0.00011142,2]
[334991911,1723716638638,-24880.0,0.00011143,2]
[334991914,1723716638647,-413.41235077,0.00011712,2]
[334991917,1723716638657,-250.0,0.00011855,2]
[334991920,1723716638666,-250.0,0.00011888,2]
[334991924,1723716638676,-250.0,0.0001192,2]
[334991926,1723716638686,-250.0,0.00011953,2]
[334991928,1723716638696,-250.0,0.00011985,2]
[334991930,1723716638706,-250.0,0.00012018,2]
[334991931,1723716638716,-250.0,0.0001205,2]
[334991933,1723716638726,-250.0,0.00012083,2]
[334991935,1723716638736,-250.0,0.00012115,2]
[334991937,1723716638746,-250.0,0.00012148,2]
[334991939,1723716638755,-250.0,0.0001218,2]
[334991941,1723716638765,-250.0,0.00012213,2]
[334991943,1723716638775,-250.0,0.00012245,2]
[334991945,1723716638785,-420.0,0.00012257,2]
[334991947,1723716638794,-250.0,0.00012278,2]
[334991949,1723716638804,-250.0,0.00012311,2]
[334991951,1723716638814,-250.0,0.00012343,2]
[334991952,1723716638823,-250.0,0.00012376,2]
[334991954,1723716638834,-250.0,0.00012408,2]
[334991956,1723716638843,-250.0,0.00012441,2]
[334991959,1723716638853,-250.0,0.00012473,2]
[334991961,1723716638864,-850.51877308,0.00012551,2]
[334991963,1723716638875,-306.0,0.000128,2]
[334991965,1723716638885,-422.14513971,0.00012898,2]
[334991967,1723716638894,-205.42133969,0.00012985,2]
[334991968,1723716638904,-153.0,0.00013178,2]
[334991970,1723716638914,-3644.13040127,0.00013441,2]
[334991972,1723716638923,-669.7312329,0.00013479,2]
[334991974,1723716638933,-587.0,0.00013482,2]
[334991976,1723716638943,-6712.7288304,0.00013678,2]
[334991978,1723716638952,-5690.31604729,0.00013688,2]
[334992130,1723716640485,-2410.02475983,0.00013688,2]
[334992132,1723716640497,-65739.67632728,0.00013688,2]
[334992134,1723716640508,-6712.7288304,0.00013689,2]
[334992136,1723716640518,-13425.4576608,0.00013689,2]
[334992138,1723716640528,-6712.7288304,0.0001369,2]
[334992140,1723716640538,-169.20621794,0.00013697,2]
[334992142,1723716640548,-1177.59452357,0.00013697,2]
[334992144,1723716640558,-1800.50855169,0.00013698,2]
[334992903,1723716648178,-1979.21849471,0.00013698,2]
[334992905,1723716648188,-205.1576302,0.00013698,2]
[334992907,1723716648197,-633.39,0.00013698,2]
[334992909,1723716648206,-500.0,0.00013698,2]
[334992911,1723716648216,-714.19,0.00013698,2]
[334992913,1723716648225,-978.47,0.00013698,2]
[334992915,1723716648235,-500.0,0.00013698,2]
[334992917,1723716648247,-500.0,0.00013698,2]
[334992919,1723716648256,-500.0,0.00013698,2]
[334992921,1723716648267,-500.0,0.00013698,2]
[334992924,1723716648276,-727.05,0.00013698,2]
[334992926,1723716648285,-500.0,0.00013698,2]
[334992928,1723716648295,-500.0,0.00013698,2]
[334992930,1723716648305,-500.0,0.00013698,2]
[334992932,1723716648314,-500.0,0.00013698,2]
[334992934,1723716648325,-500.0,0.00013698,2]
[334992936,1723716648335,-697.47,0.00013698,2]
[334992938,1723716648346,-500.0,0.00013698,2]
[334992940,1723716648356,-500.0,0.00013698,2]
[334992942,1723716648367,-766.4,0.00013698,2]
[334992944,1723716648378,-509.55125301,0.00013698,2]
[334992946,1723716648388,-500.0,0.00013698,2]
[334992948,1723716648399,-500.0,0.00013698,2]
[334992950,1723716648410,-500.0,0.00013698,2]
[334992953,1723716648421,-400.47350682,0.00013698,2]